[Event "WCCC U10 2019"]
[Site "Weifang"]
[Date "2019.08.21"]
[Round "1.1"]
[White "Materia, Marco"]
[Black "Tushishvili, Tamaz"]
[Result "1-0"]
[ECO "D36"]
[WhiteElo "2236"]
[BlackElo "1330"]
[Annotator "RC"]
[PlyCount "71"]
[EventDate "2019.08.21"]
[EventType "swiss"]
[EventCountry "CHN"]
[SourceTitle "playchess.com"]
[Source "ChessBase"]
[SourceQuality "1"]
[TimeControl "40/5400+30:1800+30"]

1. d4 {[%emt 0:00:00]} d5 {[%emt 0:00:00]} 2. c4 {[%emt 0:00:00]} e6 {[%emt 0:00:00]} 3. Nc3 {[%emt 0:00:00]} Nf6 {[%emt 0:00:00]} 4. cxd5 {[%emt 0:00:00]} exd5 {[%emt 0:00:00]} 5. Bg5 {[%emt 0:00:07]} Be7 {[%emt 0:00:00]} 6. e3 {[%emt 0:00:12]} c6 {[%emt 0:00:09]} 7. Bd3 {[%emt 0:00:07]} O-O {[%emt 0:00:27]} 8. Qc2 {[%emt 0:00:32]} Nbd7 {[%emt 0:00:18]} 9. Nge2 {[%emt 0:00:09]} Re8 {[%emt 0:00:34]} 10. O-O {[%emt 0:00:24]} h6 {[%emt 0:01:03]} 11. Bh4 {[%emt 0:00:23]} a5 {[%emt 0:04:14]} 12. f3 {[%emt 0:06:18]} Nf8 {[%emt 0:00:47]} 13. Kh1 {[%emt 0:02:07]} Ne6 {[%emt 0:02:25]} 14. Rad1 {[%emt 0:05:35]} Bd7 {[%emt 0:15:14]} 15. Qc1 {[%emt 0:06:27]} Rc8 {[%emt 0:07:49]} 16. e4 {[%emt 0:05:58]} dxe4 {[%emt 0:01:36]} 17. fxe4 {[%emt 0:00:07]} Ng4 {[%emt 0:18:02]} 18. Bxe7 {[%emt 0:01:36]} Qxe7 {[%emt 0:01:05]} 19. h3 {[%emt 0:01:22]} Nf6 {[%emt 0:02:13]} 20. e5 {[%emt 0:03:03]} Nd5 {[%emt 0:01:59]} 21. Ne4 {[%emt 0:01:04]} c5 {[%emt 0:05:02]} 22. Nf6+ {[%emt 0:02:43]} gxf6 {[%emt 0:06:57]} 23. Qxh6 {[%emt 0:00:43]} f5 {[%emt 0:05:55]} 24. Rxf5 {[%emt 0:02:10]} Qf8 {[%emt 0:01:33]} 25. Qh4 {[%emt 0:01:27]} Qg7 {[%emt 0:06:34]} 26. Rf3 {[%emt 0:03:17]} Nf8 {[%emt 0:04:04]} 27. Rg3 {[%emt 0:05:57]} Ng6 {[%emt 0:00:12]} 28. Qh5 {[%emt 0:05:51]} Nde7 {[%emt 0:04:26]} 29. Nf4 {[%emt 0:02:34]} Qh7 {[%emt 0:01:35]} 30. Qg5 {[%emt 0:02:06]} c4 {[%emt 0:07:24]} 31. Be4 {[%emt 0:02:03]} Rc6 {[%emt 0:02:41]} 32. d5 {[%emt 0:01:04]} Rb6 {[%emt 0:00:44]} 33. e6 {[%emt 0:01:12]} fxe6 {[%emt 0:00:41]} 34. Nxg6 {[%emt 0:00:18]} Nxg6 {[%emt 0:00:34]} 35. Bxg6 {[%emt 0:00:06]} Qg7 {[%emt 0:00:36]} 36. Bf7+ {[%emt 0:00:17]} 1-0

[Event "WCCC U10 2019"]
[Site "Weifang"]
[Date "2019.08.21"]
[Round "1.2"]
[White "Wickramarathne, T D"]
[Black "Vetokhin, Savva"]
[Result "1/2-1/2"]
[ECO "E91"]
[WhiteElo "1328"]
[BlackElo "2016"]
[Annotator "NA"]
[PlyCount "230"]
[EventDate "2019.08.21"]
[EventType "swiss"]
[EventCountry "CHN"]
[SourceTitle "playchess.com"]
[Source "ChessBase"]
[SourceQuality "1"]
[TimeControl "40/5400+30:1800+30"]

1. d4 {[%emt 0:00:00]} Nf6 {[%emt 0:00:00]} 2. c4 {[%emt 0:00:00]} g6 {[%emt 0:00:00]} 3. Nc3 {[%emt 0:00:00]} Bg7 {[%emt 0:00:00]} 4. e4 {[%emt 0:00:00]} d6 {[%emt 0:00:00]} 5. Nf3 {[%emt 0:00:00]} O-O {[%emt 0:00:08]} 6. Be2 {[%emt 0:00:01]} c5 {[%emt 0:00:09]} 7. d5 {[%emt 0:01:10]} e6 {[%emt 0:00:20]} 8. O-O {[%emt 0:01:44]} exd5 {[%emt 0:00:21]} 9. exd5 {[%emt 0:04:10]} Bf5 {[%emt 0:01:34]} 10. h3 {[%emt 0:05:36]} Re8 {[%emt 0:01:29]} 11. Be3 {[%emt 0:08:13]} Ne4 {[%emt 0:01:34] E91: King's Indian: Classical: 6 Be2, unusual replies including 6...c5 and 6...Bg4} 12. Qb3 $146 {[%emt 0:04:45]} ({Predecessor:} 12. Nxe4 Bxe4 13. Qd2 Qb6 14. Ng5 Bf5 15. g4 Bc8 16. Rab1 Nd7 17. Kg2 Qd8 18. b3 Nf8 19. Bd3 {½-½ (31) Wang,S (2203)-Chen,Q (2432) Qinhuangdao 2018}) 12... Nxc3 {[%emt 0:06:50]} 13. bxc3 {[%emt 0:00:06]} Qc7 {[%emt 0:00:19]} 14. Rfd1 {[%emt 0:07:02]} Be4 {[%emt 0:03:09]} 15. Ng5 {[%emt 0:05:35]} Bf5 {[%emt 0:04:06]} 16. Nf3 {[%emt 0:02:28]} Nd7 {[%emt 0:01:34]} 17. Bd3 {[%emt 0:02:15]} Bxd3 {[%emt 0:00:21]} 18. Rxd3 {[%emt 0:00:06]} Nf6 {[%emt 0:01:33]} 19. Rb1 {[%emt 0:07:47]} Re7 {[%emt 0:00:36]} 20. Bg5 {[%emt 0:10:06]} h6 {[%emt 0:00:14]} 21. Bxf6 {[%emt 0:00:11]} Bxf6 {[%emt 0:00:08]} 22. Re3 {[%emt 0:00:38]} Rb8 {[%emt 0:03:41]} 23. Rbe1 {[%emt 0:01:58]} Rbe8 {[%emt 0:00:42]} 24. Kf1 {[%emt 0:07:41]} Rxe3 {[%emt 0:01:14]} 25. Rxe3 {[%emt 0:00:12]} Rxe3 {[%emt 0:01:23]} 26. fxe3 {[%emt 0:00:03]} Qb6 {[%emt 0:00:11]} 27. Qxb6 {[%emt 0:06:14]} axb6 {[%emt 0:00:05]} 28. Ke2 {[%emt 0:00:05]} Bxc3 {[%emt 0:00:17]} 29. Kd3 {[%emt 0:00:03]} Bf6 {[%emt 0:01:00]} 30. Ne1 {[%emt 0:03:15]} Kf8 {[%emt 0:00:48]} 31. Nc2 {[%emt 0:01:41]} Bg5 {[%emt 0:00:58]} 32. Na3 {[%emt 0:03:41]} Ke7 {[%emt 0:00:17]} 33. Nb5 {[%emt 0:00:03]} Kd7 {[%emt 0:00:54]} 34. Ke4 {[%emt 0:00:47]} h5 {[%emt 0:01:15]} 35. Kf3 {[%emt 0:03:51]} Bf6 {[%emt 0:02:29]} 36. Kf4 {[%emt 0:02:03]} Be5+ {[%emt 0:01:03]} 37. Kg5 {[%emt 0:04:00]} Ke7 {[%emt 0:01:16]} 38. e4 {[%emt 0:00:08]} Bb2 {[%emt 0:00:33]} 39. g4 {[%emt 0:02:12]} hxg4 {[%emt 0:02:08]} 40. hxg4 {[%emt 0:00:17]} Bc1+ {[%emt 0:00:15]} 41. Kh4 {[%emt 0:32:19]} Bf4 {[%emt 0:30:19]} 42. g5 {[%emt 0:05:19]} f6 {[%emt 0:00:42]} 43. gxf6+ {[%emt 0:00:11]} Kxf6 {[%emt 0:00:04]} 44. Kg4 {[%emt 0:00:03]} g5 {[%emt 0:00:13]} 45. Kf3 {[%emt 0:00:05]} Ke5 {[%emt 0:00:05]} 46. a4 {[%emt 0:00:43]} g4+ {[%emt 0:00:42]} 47. Kxg4 {[%emt 0:00:23]} Kxe4 {[%emt 0:00:04]} 48. Nc3+ {[%emt 0:00:43]} Ke5 {[%emt 0:01:05]} 49. Kf3 {[%emt 0:00:56]} Bh6 {[%emt 0:00:17]} 50. Nb5 {[%emt 0:00:37]} Bg5 {[%emt 0:02:25]} 51. Kg4 {[%emt 0:01:56]} Be3 {[%emt 0:02:30]} 52. Kf3 {[%emt 0:00:05]} Bh6 {[%emt 0:00:12]} 53. Ke2 {[%emt 0:01:21]} Bf4 {[%emt 0:00:40]} 54. Kf3 {[%emt 0:00:05]} Kf5 {[%emt 0:00:07]} 55. Nc3 {[%emt 0:01:19]} Bh2 {[%emt 0:01:04]} 56. Nb5 {[%emt 0:00:19]} Ke5 {[%emt 0:00:17]} 57. Kg2 {[%emt 0:00:13]} Bf4 {[%emt 0:00:06]} 58. Kf3 {[%emt 0:00:04]} Bg5 {[%emt 0:00:57]} 59. Kg4 {[%emt 0:00:37]} Be7 {[%emt 0:00:12]} 60. Kf3 {[%emt 0:00:04]} Kf5 {[%emt 0:00:13]} 61. Nc3 {[%emt 0:00:55]} Bf6 {[%emt 0:00:23]} 62. Nb5 {[%emt 0:00:04]} Be5 {[%emt 0:00:03]} 63. Ke3 {[%emt 0:00:08]} Bh2 {[%emt 0:01:12]} 64. Kf3 {[%emt 0:00:07]} Kg5 {[%emt 0:00:28]} 65. Kg2 {[%emt 0:00:35]} Be5 {[%emt 0:00:22]} 66. Kf3 {[%emt 0:00:05]} Kf5 {[%emt 0:00:14]} 67. Ke3 {[%emt 0:00:04]} Bh2 {[%emt 0:00:08]} 68. Kf3 {[%emt 0:00:07]} Ke5 {[%emt 0:00:09]} 69. Kg2 {[%emt 0:00:10]} Bf4 {[%emt 0:00:07]} 70. Kf3 {[%emt 0:00:03]} Bh6 {[%emt 0:00:04]} 71. Ke2 {[%emt 0:00:10]} Bg5 {[%emt 0:00:09]} 72. Kf3 {[%emt 0:00:04]} Be7 {[%emt 0:00:04]} 73. Ke3 {[%emt 0:00:03]} Bg5+ {[%emt 0:01:08]} 74. Kf3 {[%emt 0:00:03]} Bf6 {[%emt 0:00:07]} 75. Ke3 {[%emt 0:00:11]} Bh4 {[%emt 0:00:53]} 76. Kf3 {[%emt 0:00:06]} Bg5 {[%emt 0:00:03]} 77. Kg4 {[%emt 0:00:07]} Be7 {[%emt 0:00:08]} 78. Kf3 {[%emt 0:00:04]} Kf5 {[%emt 0:00:07]} 79. Ke3 {[%emt 0:00:10]} Bg5+ {[%emt 0:00:04]} 80. Kf3 {[%emt 0:00:04]} Bf4 {[%emt 0:00:04]} 81. Nc3 {[%emt 0:00:53]} Bd2 {[%emt 0:00:22]} 82. Nb5 {[%emt 0:00:04]} Ke5 {[%emt 0:00:04]} 83. Ke2 {[%emt 0:00:03]} Bg5 {[%emt 0:00:05]} 84. Kf3 {[%emt 0:00:03]} Bh6 {[%emt 0:01:05]} 85. Ke2 {[%emt 0:00:07]} Bf8 {[%emt 0:04:30]} 86. Ke3 {[%emt 0:00:04]} Bh6+ {[%emt 0:00:11]} 87. Kf3 {[%emt 0:00:06]} Bg5 $11 {[%emt 0:00:00]} 88. Kg4 {[%emt 0:00:28]} Bc1 {[%emt 0:00:00]} 89. Kf3 {[%emt 0:00:03]} Bb2 {[%emt 0:00:00]} 90. Ke3 {[%emt 0:00:08]} Bc1+ {[%emt 0:00:00]} 91. Kf3 {[%emt 0:00:03]} Bd2 {[%emt 0:00:00]} 92. Ke2 {[%emt 0:00:03]} Bh6 {[%emt 0:00:00]} 93. Kf3 {[%emt 0:00:04]} Bf8 {[%emt 0:00:00]} 94. Ke3 {[%emt 0:00:04]} Kf5 {[%emt 0:00:00]} 95. Kf3 {[%emt 0:00:02]} Kg5 {[%emt 0:00:01]} 96. Nc3 {[%emt 0:00:39]} Be7 {[%emt 0:00:11]} 97. Nb5 {[%emt 0:00:04]} Bf8 {[%emt 0:00:10]} 98. Nc3 {[%emt 0:00:05]} Kf5 {[%emt 0:00:06]} 99. Nb5 {[%emt 0:00:05]} Ke5 {[%emt 0:00:04]} 100. Ke3 {[%emt 0:00:03]} Bh6+ {[%emt 0:00:07]} 101. Kf3 {[%emt 0:00:03]} Bg7 {[%emt 0:00:25]} 102. Ke3 {[%emt 0:00:03]} Bh6+ {[%emt 0:00:09]} 103. Kf3 {[%emt 0:00:04]} Bg5 {[%emt 0:00:04]} 104. Kg4 {[%emt 0:00:03]} Bh6 {[%emt 0:00:07]} 105. Kf3 {[%emt 0:00:03]} Bd2 {[%emt 0:00:08]} 106. Ke2 {[%emt 0:00:03]} Bg5 {[%emt 0:00:06]} 107. Kf3 {[%emt 0:00:03]} Bh6 {[%emt 0:00:05]} 108. Ke2 {[%emt 0:00:03]} Bg5 {[%emt 0:00:18]} 109. Kf3 {[%emt 0:00:05]} Bd2 {[%emt 0:00:04]} 110. Ke2 {[%emt 0:00:03]} Bc1 {[%emt 0:00:04]} 111. Kf3 {[%emt 0:00:03]} Bg5 {[%emt 0:00:32]} 112. Kg4 {[%emt 0:00:05]} Bd2 {[%emt 0:00:07]} 113. Kf3 {[%emt 0:00:03]} Bc1 {[%emt 0:00:04]} 114. Ke2 {[%emt 0:00:03]} Ke4 {[%emt 0:00:48]} 115. Nxd6+ {[%emt 0:00:22]} Kd4 {[%emt 0:00:04]} 1/2-1/2

[Event "WCCC U10 2019"]
[Site "Weifang"]
[Date "2019.08.21"]
[Round "1.3"]
[White "Ilamparthi A R"]
[Black "Chai, Isaac"]
[Result "1-0"]
[ECO "D02"]
[WhiteElo "1984"]
[BlackElo "1305"]
[Annotator "NA"]
[PlyCount "85"]
[EventDate "2019.08.21"]
[EventType "swiss"]
[EventCountry "CHN"]
[SourceTitle "playchess.com"]
[Source "ChessBase"]
[SourceQuality "1"]
[TimeControl "40/5400+30:1800+30"]

1. Nf3 {[%emt 0:00:00]} Nf6 {[%emt 0:00:00]} 2. g3 {[%emt 0:00:13]} d5 {[%emt 0:02:09]} 3. d4 {[%emt 0:00:24]} c5 {[%emt 0:05:57]} 4. Bg2 {[%emt 0:01:50]} Nc6 {[%emt 0:02:36]} 5. O-O {[%emt 0:03:45]} e6 {[%emt 0:06:40]} 6. b3 {[%emt 0:03:03]} Be7 {[%emt 0:05:42]} 7. Bb2 {[%emt 0:00:32]} O-O {[%emt 0:03:06]} 8. Nbd2 {[%emt 0:00:08]} Bd7 {[%emt 0:04:39]} 9. c4 {[%emt 0:00:56]} Rc8 {[%emt 0:10:15]} 10. cxd5 {[%emt 0:03:26]} Nxd5 {[%emt 0:04:32]} 11. e4 {[%emt 0:01:52]} Nf6 {[%emt 0:02:35]} 12. Qe2 {[%emt 0:01:18]} cxd4 {[%emt 0:04:55]} 13. Nxd4 {[%emt 0:00:13]} Nxd4 {[%emt 0:03:37]} 14. Bxd4 {[%emt 0:00:26]} a6 {[%emt 0:02:31]} 15. Nc4 {[%emt 0:04:17]} Bb5 {[%emt 0:05:08]} 16. Rfd1 {[%emt 0:01:50]} Qc7 {[%emt 0:02:25]} 17. Rac1 {[%emt 0:00:58]} Rfd8 {[%emt 0:04:45]} 18. Qe3 {[%emt 0:11:22]} Ng4 {[%emt 0:09:01]} 19. Qf3 {[%emt 0:05:56]} Nf6 {[%emt 0:00:34]} 20. h3 {[%emt 0:05:04]} Bc6 {[%emt 0:05:55]} 21. Be5 {[%emt 0:02:51]} Rxd1+ {[%emt 0:04:04]} 22. Rxd1 {[%emt 0:00:09]} Bxe4 {[%emt 0:00:32]} 23. Qxe4 {[%emt 0:01:22]} Nxe4 {[%emt 0:00:34]} 24. Bxc7 {[%emt 0:00:08]} Nxf2 {[%emt 0:01:45]} 25. Rd7 {[%emt 0:00:23]} Bc5 $18 {[%emt 0:00:57]} 26. Bxb7 {[%emt 0:01:17]} Rf8 {[%emt 0:00:21]} 27. Kg2 {[%emt 0:00:17]} f5 {[%emt 0:01:25]} 28. b4 {[%emt 0:00:14]} Ba7 {[%emt 0:00:11]} 29. Be5 {[%emt 0:00:47]} Rf7 {[%emt 0:00:32]} 30. Rd8+ {[%emt 0:00:03]} Rf8 {[%emt 0:00:10]} 31. Rxf8+ {[%emt 0:00:07]} Kxf8 {[%emt 0:00:06]} 32. Bxa6 {[%emt 0:00:05]} Nd3 {[%emt 0:00:16]} 33. Bd6+ {[%emt 0:00:04]} Ke8 {[%emt 0:00:16]} 34. b5 {[%emt 0:00:11]} Bc5 {[%emt 0:00:42]} 35. b6 {[%emt 0:00:22]} Bxd6 {[%emt 0:00:20]} 36. Nxd6+ {[%emt 0:00:08]} Kd7 {[%emt 0:00:05]} 37. b7 {[%emt 0:00:09]} Kc7 {[%emt 0:00:11]} 38. Bxd3 {[%emt 0:00:05]} Kb8 {[%emt 0:00:12]} 39. a4 {[%emt 0:00:04]} Ka7 {[%emt 0:00:05]} 40. a5 {[%emt 0:00:04]} Kb8 {[%emt 0:00:03]} 41. a6 {[%emt 0:30:12]} Ka7 {[%emt 0:30:07]} 42. Bc4 {[%emt 0:00:11]} Kb8 {[%emt 0:00:08]} 43. Nb5 {[%emt 0:00:05]} 1-0

[Event "WCCC U10 2019"]
[Site "Weifang"]
[Date "2019.08.21"]
[Round "1.4"]
[White "Zhu, Chenxi"]
[Black "Bharadia Yash"]
[Result "0-1"]
[ECO "C77"]
[WhiteElo "1298"]
[BlackElo "1963"]
[Annotator "NA"]
[PlyCount "96"]
[EventDate "2019.08.21"]
[EventType "swiss"]
[EventCountry "CHN"]
[SourceTitle "playchess.com"]
[Source "ChessBase"]
[SourceQuality "1"]
[TimeControl "40/5400+30:1800+30"]

1. e4 {[%emt 0:00:00]} e5 {[%emt 0:00:00]} 2. Nf3 {[%emt 0:00:00]} Nc6 {[%emt 0:00:00]} 3. Bb5 {[%emt 0:00:10]} a6 {[%emt 0:00:03]} 4. Ba4 {[%emt 0:00:18]} Nf6 {[%emt 0:00:14]} 5. d4 {[%emt 0:00:22]} Nxe4 {[%emt 0:40:35]} 6. Qe2 {[%emt 0:01:42]} f5 {[%emt 0:06:39]} 7. dxe5 {[%emt 0:16:18] C77: Ruy Lopez: 3...a6 4 Ba4 Nf6, unusual lines} Nc5 {[%emt 0:06:57]} (7... Be7 8. Bb3 Nc5 9. Bc4 Ne6 10. O-O O-O 11. Rd1 Qe8 12. Nc3 b5 13. Bb3 Na5 14. Bd5 c6 {1-0 (43) Todorovic,N (2312)-Dumpor,A (2335) Kragujevac 2015}) 8. Bxc6 {[%emt 0:02:55]} dxc6 {[%emt 0:00:37]} 9. O-O {[%emt 0:01:01]} Ne6 {[%emt 0:00:09]} 10. Rd1 {[%emt 0:02:46]} Qe7 {[%emt 0:00:09]} 11. Nc3 $146 {[%emt 0:04:39]} ({Predecessor:} 11. b3 Qc5 12. Be3 Qe7 13. Bc1 Qc5 14. Qd3 g6 15. Bg5 h6 16. Bd8 Be7 17. Bxe7 Kxe7 18. Qc3 Bd7 19. Nh4 Be8 20. Rd3 {½-½ (20) Gensch,M (1830)-Schiffner,H (1621) Uckley 2001}) 11... h6 {[%emt 0:04:14]} 12. Nd4 {[%emt 0:03:38]} Qf7 {[%emt 0:00:34]} 13. Qf3 {[%emt 0:16:58]} Nxd4 {[%emt 0:03:26]} 14. Rxd4 {[%emt 0:00:16]} Be6 {[%emt 0:00:11]} 15. Be3 {[%emt 0:10:12]} Be7 {[%emt 0:01:14]} 16. b4 {[%emt 0:07:13]} g5 {[%emt 0:01:27]} 17. g3 {[%emt 0:02:27]} O-O {[%emt 0:03:10]} 18. h4 {[%emt 0:14:12]} Qg6 {[%emt 0:07:27]} 19. hxg5 {[%emt 0:01:51]} hxg5 {[%emt 0:00:10]} 20. Qg2 {[%emt 0:00:13]} Kg7 {[%emt 0:02:41]} 21. f4 {[%emt 0:01:14]} g4 {[%emt 0:00:53]} 22. Kf2 {[%emt 0:02:03]} Rh8 {[%emt 0:00:23]} 23. Rh1 {[%emt 0:01:06]} Rxh1 {[%emt 0:00:12]} 24. Qxh1 {[%emt 0:00:02]} Rh8 {[%emt 0:00:19]} 25. Qg2 {[%emt 0:01:56]} Rh3 {[%emt 0:00:20]} 26. a3 {[%emt 0:03:41]} Qh5 {[%emt 0:13:52]} 27. Kg1 {[%emt 0:00:33]} Qf7 {[%emt 0:00:24]} 28. Rd2 {[%emt 0:01:47]} (28. Rd3 $142) 28... Qe8 {[%emt 0:01:03]} 29. Bd4 {[%emt 0:01:59]} Kg6 {[%emt 0:00:39]} 30. Bf2 {[%emt 0:00:43]} a5 {[%emt 0:01:01]} 31. Bc5 {[%emt 0:02:02]} axb4 {[%emt 0:01:49]} 32. axb4 {[%emt 0:00:47]} Bxc5+ {[%emt 0:01:17]} 33. bxc5 {[%emt 0:00:01]} Qa8 {[%emt 0:00:45]} 34. Kf2 {[%emt 0:01:04]} Qa5 {[%emt 0:00:27]} 35. Rd3 {[%emt 0:00:33]} Qxc5+ {[%emt 0:00:17]} 36. Ke1 {[%emt 0:00:27]} Bc4 {[%emt 0:00:40]} 37. Rd7 {[%emt 0:00:38]} Qe3+ {[%emt 0:00:21] Double Attack} 38. Kd1 {[%emt 0:00:34]} Rxg3 {[%emt 0:00:33]} 39. Qxg3 {[%emt 0:00:26]} Qxg3 {[%emt 0:00:07]} 40. Ne2 {[%emt 0:00:23]} Qf3 {[%emt 0:00:18]} 41. Rxc7 {[%emt 0:30:24]} Qxe2+ {[%emt 0:30:32]} 42. Kc1 {[%emt 0:00:09]} Qe3+ {[%emt 0:00:34]} 43. Kb1 {[%emt 0:00:15]} Qb6+ {[%emt 0:00:03]} 44. Kc1 {[%emt 0:00:17]} Qxc7 {[%emt 0:00:06]} 45. Kd2 {[%emt 0:00:00]} g3 {[%emt 0:00:00]} 46. Ke1 {[%emt 0:00:00]} Qb6 {[%emt 0:00:00]} 47. c3 {[%emt 0:00:00]} Qe3+ {[%emt 0:00:00]} 48. Kd1 {[%emt 0:00:00]} Bb3# {[%emt 0:00:00]} 0-1

[Event "WCCC U10 2019"]
[Site "Weifang"]
[Date "2019.08.21"]
[Round "1.5"]
[White "Lu, Miaoyi"]
[Black "Hou, Yixuan"]
[Result "1-0"]
[ECO "E07"]
[WhiteElo "1950"]
[BlackElo "1287"]
[Annotator "NA"]
[PlyCount "47"]
[EventDate "2019.08.21"]
[EventType "swiss"]
[EventCountry "CHN"]
[SourceTitle "playchess.com"]
[Source "ChessBase"]
[SourceQuality "1"]
[TimeControl "40/5400+30:1800+30"]

1. d4 {[%emt 0:00:00]} Nf6 {[%emt 0:00:00]} 2. c4 {[%emt 0:00:00]} (2. Nf3 d5 3. c4 e6 {½-½ (9) Kallai,G (2475)-Horvath,C (2507) Hungary 2017}) 2... e6 {[%emt 0:00:00]} 3. g3 {[%emt 0:00:00]} d5 {[%emt 0:00:00]} 4. Nf3 {[%emt 0:00:00]} Be7 {[%emt 0:00:28]} 5. Bg2 {[%emt 0:00:00]} O-O {[%emt 0:00:20]} 6. O-O {[%emt 0:00:00]} Nbd7 {[%emt 0:00:46]} 7. Nbd2 {[%emt 0:00:00]} b6 {[%emt 0:03:02]} 8. cxd5 {[%emt 0:01:26]} exd5 {[%emt 0:00:07]} 9. Ne5 {[%emt 0:02:31] E07: Closed Catalan: Main Line (5 Nf3 0-0 6 0-0 Nbd7)} Bb7 {[%emt 0:00:50]} 10. f4 {[%emt 0:03:33]} c5 {[%emt 0:02:01]} 11. e3 {[%emt 0:02:37]} Qc7 $146 {[%emt 0:03:23]} ({Predecessor:} 11... Ne4 12. Qa4 Nxe5 13. dxe5 Nxd2 14. Bxd2 {1-0 (46) Piliposyan,R (1898)-Karamyan,V (1956) Yerevan 2018}) 12. Kh1 {[%emt 0:05:41]} Rad8 {[%emt 0:01:14]} 13. Ndf3 {[%emt 0:02:39]} Ne4 {[%emt 0:02:08]} 14. Qc2 {[%emt 0:08:08]} f6 {[%emt 0:02:50]} 15. Nxd7 {[%emt 0:05:31]} Qxd7 {[%emt 0:00:04]} 16. Kg1 {[%emt 0:03:27]} Ba6 {[%emt 0:01:13]} 17. Rd1 {[%emt 0:03:52]} Rc8 {[%emt 0:01:44]} 18. dxc5 {[%emt 0:00:54]} Nxc5 {[%emt 0:01:07]} (18... Rfd8 $17 19. Nd4 Bxc5) 19. Qb1 {[%emt 0:07:55] [#]} Qg4 $15 {[%emt 0:05:24]} 20. Rd2 {[%emt 0:09:35]} Qe6 {[%emt 0:05:24]} 21. Ng5 {[%emt 0:10:16]} Qxe3+ {[%emt 0:00:46]} 22. Rf2 {[%emt 0:00:02]} Qe1+ {[%emt 0:00:11]} 23. Rf1 {[%emt 0:00:22]} Bxf1 {[%emt 0:00:10]} 24. Qxh7# {[%emt 0:00:03]} 1-0

[Event "WCCC U10 2019"]
[Site "Weifang"]
[Date "2019.08.21"]
[Round "1.6"]
[White "Lam, Chun Yung Samuel"]
[Black "Kong, Xiangrui"]
[Result "0-1"]
[ECO "A08"]
[WhiteElo "1283"]
[BlackElo "1889"]
[Annotator "NA"]
[PlyCount "34"]
[EventDate "2019.08.21"]
[EventType "swiss"]
[EventCountry "CHN"]
[SourceTitle "playchess.com"]
[Source "ChessBase"]
[SourceQuality "1"]
[TimeControl "40/5400+30:1800+30"]

1. Nf3 {[%emt 0:00:00]} d5 {[%emt 0:00:00]} 2. g3 {[%emt 0:00:00]} Nf6 {[%emt 0:00:00]} 3. Bg2 {[%emt 0:00:00]} c5 {[%emt 0:00:00]} 4. O-O {[%emt 0:00:00]} Nc6 {[%emt 0:00:00]} 5. d3 {[%emt 0:00:05]} Bf5 {[%emt 0:00:28]} 6. Bf4 {[%emt 0:01:19]} e6 {[%emt 0:00:12]} 7. Nbd2 {[%emt 0:00:11]} h6 {[%emt 0:00:18]} 8. h4 {[%emt 0:00:09]} Be7 {[%emt 0:00:19]} 9. Re1 {[%emt 0:00:29]} Nh5 {[%emt 0:01:45]} 10. e4 {[%emt 0:01:15]} Nxf4 {[%emt 0:01:22]} 11. exf5 {[%emt 0:00:10]} Nxg2 {[%emt 0:00:41]} 12. Kxg2 {[%emt 0:00:08]} exf5 {[%emt 0:00:15]} 13. Ne5 {[%emt 0:00:27]} O-O {[%emt 0:01:18]} 14. Qf3 {[%emt 0:01:24]} Nd4 {[%emt 0:01:03]} 15. Qd1 {[%emt 0:01:33]} Bf6 {[%emt 0:01:18]} 16. c3 {[%emt 0:00:26]} Ne6 {[%emt 0:02:22]} 17. Qf3 {[%emt 0:00:38]} f4 {[%emt 0:01:15]} 0-1